[Event "41st BAN National Women Chess-ch 2022"]
[Site "Dhaka"]
[Date "2022.11.17"]
[Round "1.1"]
[White "Warsia, Khusbu"]
[Black "Khan, Nazrana"]
[Result "1/2-1/2"]
[ECO "B41"]
[WhiteElo "1540"]
[BlackElo "1908"]
[Annotator "TA"]
[PlyCount "129"]
[EventDate "2022.11.17"]
[EventCountry "BAN"]
[SourceTitle "playchess.com"]
[Source "ChessBase"]
[SourceQuality "1"]
[TimeControl "40/5400+30:1800+30"]

{[%evp 14,128,53,50,39,46,66,46,61,53,47,47,52,55,40,35,35,9,33,-6,44,0,106,0,0,0,8,9,25,-12,-6,-19,-26,-23,12,0,7,-6,0,0,0,0,16,15,14,17,18,18,18,18,29,26,28,0,12,0,0,0,0,0,0,0,0,0,0,0,0,0,0,0,0,0,0,0,0,0,0,0,0,0,0,0,0,0,0,0,0,0,0,0,0,0,0,0,0,0,0,0,0,0,0,0,0,0,0,0,0,0,0,0,0,0,0,0,0,0,0]} 1. e4 {[%emt 0:00:05]} c5 {[%emt 0:00:07]} 2. Nf3 {[%emt 0:00:15]} e6 {[%emt 0:00:10]} 3. d4 {[%emt 0:00:13]} cxd4 {[%emt 0:00:13]} 4. Nxd4 {[%emt 0:00:08]} a6 {[%emt 0:00:15]} 5. c4 {[%emt 0:00:12]} Nf6 {[%emt 0:00:31]} 6. Nc3 {[%emt 0:00:20]} Qc7 {[%emt 0:00:27]} 7. a3 {[%emt 0:00:28]} b6 {[%emt 0:00:40]} 8. Be3 {[%emt 0:04:14]} Bb7 {[%emt 0:00:18] B41: Sicilian: Kan Variation: 5 c4.} 9. f3 {[%emt 0:01:22]} d6 {[%emt 0:02:37]} 10. Be2 {[%emt 0:01:57] White is more active.} Nbd7 {[%emt 0:06:30] White is slightly better. 10...Nbd7 is better than 10...Be7.} 11. Rc1 {[%emt 0:01:07]} Be7 {[%emt 0:01:07]} 12. b4 {[%emt 0:00:50]} Rc8 {[%emt 0:01:19]} 13. O-O {[%emt 0:07:45]} O-O {[%emt 0:02:36] was the old line (13...Qb8).} 14. Kh1 {[%emt 0:11:15]} Qb8 {[%emt 0:01:26]} 15. Nb3 {[%emt 0:02:30]} Rfe8 {[%emt 0:06:34][%cal Od6d5]} 16. Qd4 {[%emt 0:06:10] [#] Prevents d5.} h5 $146 {[%emt 0:09:06]} ({Black should try} 16... d5 $11) ({Predecessor:} 16... Rcd8 17. Na4 d5 18. exd5 exd5 19. c5 bxc5 20. bxc5 Bc6 21. Na5 Bxa4 22. Qxa4 Qe5 {½-½ (22) Belikov,V (2435)-Galanov,B (2435) Nagykanizsa 1994}) 17. Na4 {[%emt 0:02:44]} d5 {[%emt 0:04:37] [#]} (17... Bd8 $1 $11) 18. cxd5 {[%emt 0:06:47]} ({Much less strong is} 18. Nxb6 e5 19. Qb2 Nxb6 20. Bxb6 dxe4 $11) (18. e5 $1 $16) 18... exd5 {[%emt 0:01:21]} 19. Nxb6 {[%emt 0:01:07]} Nxb6 {[%emt 0:02:51]} 20. Qxb6 {[%emt 0:00:35] And now Na5 would win.} dxe4 {[%emt 0:02:49]} 21. fxe4 {[%emt 0:10:01]} Rxc1 {[%emt 0:02:48]} 22. Bxc1 {[%emt 0:02:04]} Bd8 {[%emt 0:06:59]} 23. Qf2 {[%emt 0:03:23]} Qe5 {[%emt 0:08:00]} 24. Nc5 {[%emt 0:10:30]} Bb6 {[%emt 0:05:01]} 25. Bf4 {[%emt 0:01:59]} Qe7 {[%emt 0:04:09]} (25... Nxe4 {with more complications.} 26. Bxe5 Nxf2+ 27. Rxf2 Bxc5 28. bxc5 Rxe5 29. Bc4 g6) 26. Bg5 {[%emt 0:06:59][%cal Rg5f6]} Bxc5 {[%emt 0:05:25]} 27. Bxf6 {[%emt 0:04:17] [#] Black must now prevent Qg3.} Bxf2 {[%emt 0:02:27]} 28. Bxe7 {[%emt 0:00:05]} Rxe7 {[%emt 0:03:13]} 29. Rxf2 {[%emt 0:00:11]} Rxe4 $11 {[%emt 0:01:05][%mdl 4096] Endgame KRB-KRB} 30. Kg1 {[%emt 0:00:25]} g6 {[%emt 0:04:02]} 31. Bf3 {[%emt 0:01:15]} Re7 {[%emt 0:00:31]} 32. Bxb7 {[%emt 0:00:11]} Rxb7 {[%emt 0:00:35] KR-KR} 33. Rf4 {[%emt 0:01:01]} Kf8 {[%emt 0:02:38] The position is equal.} 34. Kf2 {[%emt 0:00:26]} Ke7 {[%emt 0:00:25]} 35. Ke3 {[%emt 0:00:08]} a5 {[%emt 0:04:27]} 36. Rd4 {[%emt 0:03:04]} ({But not} 36. bxa5 Rb3+ 37. Kf2 Rxa3 $17) 36... f6 {[%emt 0:02:12]} 37. Ke4 {[%emt 0:01:13]} axb4 {[%emt 0:00:29]} 38. Rxb4 {[%emt 0:02:25]} Ra7 {[%emt 0:00:35]} 39. a4 {[%emt 0:00:16]} Ra5 {[%emt 0:00:33]} 40. Kd3 {[%emt 0:02:21]} Kd6 {[%emt 0:01:26]} 41. Kc3 {[%emt 0:30:57]} g5 {[%emt 0:36:02]} 42. Rb6+ {[%emt 0:00:29]} Kc7 {[%emt 0:01:28]} 43. Rxf6 {[%emt 0:03:10]} Rxa4 {[%emt 0:00:09]} 44. Rg6 {[%emt 0:00:57]} Rg4 {[%emt 0:00:54]} 45. g3 {[%emt 0:00:09]} Kd7 {[%emt 0:00:30]} 46. Kd3 {[%emt 0:00:45]} Ke7 {[%emt 0:00:19]} 47. Ke3 {[%emt 0:00:12]} Kf7 {[%emt 0:00:00]} 48. Rh6 {[%emt 0:00:00]} h4 {[%emt 0:00:00]} 49. gxh4 {[%emt 0:00:00]} gxh4 {[%emt 0:00:00]} 50. Kf3 {[%emt 0:00:00]} Ra4 {[%emt 0:00:00]} 51. h3 {[%emt 0:00:00]} Kg7 {[%emt 0:00:00]} 52. Re6 {[%emt 0:00:00]} Kh7 {[%emt 0:00:00]} 53. Re4 {[%emt 0:00:00]} Rxe4 {[%emt 0:00:00]} 54. Kxe4 {[%emt 0:00:00] KP-KP} Kg6 {[%emt 0:00:00]} 55. Kf4 {[%emt 0:00:00]} Kh5 {[%emt 0:00:00]} 56. Kf5 {[%emt 0:00:00]} Kh6 {[%emt 0:00:00]} 57. Kg4 {[%emt 0:00:00]} Kg6 {[%emt 0:00:00]} 58. Kxh4 {[%emt 0:00:00] KP-K} Kh6 {[%emt 0:00:00]} 59. Kg4 {[%emt 0:00:00]} Kg6 {[%emt 0:00:00]} 60. h4 {[%emt 0:00:00][%cal Bh3h4,Bh4h5,Bh5h6,Bh6h7][%mdl 32]} Kh6 {[%emt 0:00:00]} 61. h5 {[%emt 0:00:00]} Kg7 {[%emt 0:00:00]} 62. Kg5 {[%emt 0:00:00]} Kh7 {[%emt 0:00:00]} 63. h6 {[%emt 0:00:00]} Kg8 {[%emt 0:00:00]} 64. Kg6 {[%emt 0:00:00]} Kh8 {[%emt 0:00:00]} 65. h7 {[%emt 0:00:00] Weighted Error Value: White=0.09 (flawless) /Black=0.09 (flawless)} 1/2-1/2

[Event "41st BAN National Women Chess-ch 2022"]
[Site "Dhaka"]
[Date "2022.11.17"]
[Round "1.2"]
[White "Sabiha, Marjana"]
[Black "Kazi Zarin, Tasnim"]
[Result "1/2-1/2"]
[ECO "A05"]
[WhiteElo "1267"]
[BlackElo "1860"]
[Annotator "NA RC COMBH"]
[PlyCount "174"]
[EventDate "2022.11.17"]
[EventCountry "BAN"]
[SourceTitle "playchess.com"]
[Source "ChessBase"]
[SourceQuality "1"]
[TimeControl "40/5400+30:1800+30"]

{[%evp 8,174,-9,-33,-29,-48,-50,32767,32767,32767,32767,32767,32767,-66,-24,-62,-16,-163,-149,-156,-158,-158,-150,-161,-131,-143,-90,-96,-20,-41,30,22,58,49,121,116,135,119,129,35,34,35,35,34,65,55,56,56,57,39,50,62,87,44,92,91,102,0,0,0,0,0,0,0,0,0,40,51,27,0,0,0,0,0,0,0,0,0,0,0,0,0,0,-15,-15,-16,-51,-15,-52,-60,-71,-576,-8,-8,0,-12837,-592,-572,-8,-8,-11,-8,0,0,0,0,0,0,0,0,0,0,0,0,0,0,541,27995,27997,6273,4610,4396,29952,27995,4631,27996,4622,27996,29967,29968,12360,12758,29975,29973,27996,29977,27997,27996,29978,27994,29967,29971,27996,7023,5370,29975,27996,29975,29973,0,0,0,0,0,0,0,0,0,0,0,0,0,0,0,0,0,0,0,0]} 1. Nf3 {[%emt 0:00:14]} Nf6 {[%emt 0:00:10]} 2. g3 {[%emt 0:00:14]} c5 {[%emt 0:01:03]} 3. b3 {[%emt 0:00:21]} Nc6 {[%emt 0:00:10]} 4. Bg2 {[%emt 0:00:20]} d5 {[%emt 0:00:36]} 5. d3 {[%emt 0:00:28]} e5 {[%emt 0:01:14]} 6. Bb2 {[%emt 0:00:22]} Bd6 {[%emt 0:02:37]} 7. Nbd2 {[%emt 0:01:06]} O-O {[%emt 0:03:49]} 8. O-O {[%emt 0:00:23]} Re8 {[%emt 0:01:37]} 9. e4 {[%emt 0:01:20]} d4 {[%emt 0:00:18]} 10. Nc4 {[%emt 0:01:29]} Bf8 {[%emt 0:01:21]} (10... Bc7 $15) 11. a3 {[%emt 0:02:39]} ({Better is} 11. a4 $1 $11) 11... g6 {[%emt 0:03:53]} (11... b5 $15 {was preferrable.} 12. Ncd2 Bd7) 12. c3 {[%emt 0:01:16]} (12. a4 $1 $11) 12... b5 {[%emt 0:01:32]} 13. Ncd2 {[%emt 0:01:35]} dxc3 {[%emt 0:00:31]} 14. Bxc3 {[%emt 0:00:34]} Qxd3 {[%emt 0:00:07]} 15. Bb2 {[%emt 0:01:50]} Bh6 {[%emt 0:08:08]} 16. Re1 {[%emt 0:02:09]} Bg4 {[%emt 0:04:41]} (16... Rb8 $142 17. Rc1 Qd6) 17. Bf1 {[%emt 0:05:51] [#]} Qd7 {[%emt 0:06:43]} ({Better is} 17... Qxd2 $1 $17 {[%mdl 512]} 18. Nxd2 Bxd1 19. Raxd1 a6) 18. Bxb5 {[%emt 0:01:48]} Bxd2 {[%emt 0:00:14]} (18... Rad8 {deserves consideration.}) 19. Qxd2 {[%emt 0:05:39]} Rad8 {[%emt 0:06:00]} (19... Rac8 $11 20. Qe3 Bxf3 21. Qxf3 Qb7) 20. Qxd7 {[%emt 0:01:38]} Nxd7 {[%emt 0:00:27]} (20... Bxd7 $14 21. Bxc6 Bxc6) 21. Bxc6 {[%emt 0:03:32]} Bxf3 {[%emt 0:00:05]} 22. Rac1 {[%emt 0:00:42]} Re6 {[%emt 0:02:03]} 23. Bxd7 {[%emt 0:01:29]} (23. Bd5 $16 Rf6 24. h3) 23... Rxd7 {[%emt 0:00:05]} 24. Rxc5 {[%emt 0:00:45]} f6 {[%emt 0:02:39]} 25. Rc3 {[%emt 0:01:42]} Bg4 {[%emt 0:02:09]} 26. f3 {[%emt 0:00:32]} Bh3 {[%emt 0:00:04]} 27. Kf2 {[%emt 0:03:30]} Red6 {[%emt 0:03:32]} 28. g4 {[%emt 0:05:52]} Rd2+ {[%emt 0:00:09]} 29. Re2 {[%emt 0:00:48]} Rd1 {[%emt 0:01:54]} 30. Rc1 {[%emt 0:03:57]} Bf1 {[%emt 0:01:51]} (30... h5 $14 {might be stronger.}) 31. Rxd1 {[%emt 0:04:13]} Rxd1 {[%emt 0:00:05]} 32. Re1 {[%emt 0:01:47]} ({White should try} 32. Rc2 $16) 32... Rd2+ {[%emt 0:01:13]} 33. Kxf1 {[%emt 0:00:59]} Rxb2 {[%emt 0:00:04]} 34. Re3 {[%emt 0:02:03]} Rxh2 {[%emt 0:00:04]} 35. Rc3 {[%emt 0:00:16]} Rb2 {[%emt 0:00:29]} 36. b4 {[%emt 0:00:14]} a5 {[%emt 0:02:33]} (36... h5 $11) 37. bxa5 {[%emt 0:00:28]} Rb5 $1 {[%emt 0:00:06]} 38. a4 {[%emt 0:03:33]} (38. a6 $14 Ra5 39. Rc6) 38... Rxa5 {[%emt 0:00:06]} 39. Rc4 {[%emt 0:00:53]} Kg7 {[%emt 0:00:48]} 40. Ke2 {[%emt 0:00:10]} Kh6 {[%emt 0:00:13]} 41. Kf2 {[%emt 0:30:38]} Kg5 {[%emt 0:30:52]} 42. Kg3 {[%emt 0:00:23]} h6 {[%emt 0:00:38]} 43. Rb4 {[%emt 0:00:42]} h5 {[%emt 0:01:25]} 44. gxh5 {[%emt 0:01:44]} gxh5 {[%emt 0:00:01]} 45. Rc4 {[%emt 0:01:00]} h4+ {[%emt 0:00:19]} 46. Kh3 {[%emt 0:00:12]} Kf4 {[%emt 0:00:08]} 47. Kxh4 {[%emt 0:00:18]} Kxf3 {[%emt 0:00:05]} 48. Kh5 {[%emt 0:00:09] [#]} (48. Rc6 $11) 48... Kf4 $1 {[%emt 0:01:43]} 49. Rb4 $2 {[%emt 0:00:46]} (49. Kh4 $1 $15) 49... Ra6 $2 {[%emt 0:02:26]} ({Black should try} 49... f5 $19 50. exf5+ e4) 50. Kh4 $1 {[%emt 0:01:29]} Kf3 {[%emt 0:05:01]} 51. Kh3 $2 {[%emt 0:01:31]} (51. Kh5 $11) 51... Ra8 {[%emt 0:02:10]} (51... Ra7 $142 {[%cal Ra7h7]} 52. Kh2 Ra6) 52. Kh2 {[%emt 0:01:13] [#]} Ke3 $2 {[%emt 0:04:00]} (52... f5 $1 $19 {[%cal Rf5e4]} 53. Rb3+ (53. exf5 $2 e4 $19) 53... Kxe4) 53. Kg2 {[%emt 0:01:06]} Rg8+ {[%emt 0:01:06]} 54. Kf1 {[%emt 0:00:36]} Kd3 {[%emt 0:00:34]} 55. Kf2 {[%emt 0:02:15]} Ra8 {[%emt 0:01:27]} 56. Kf3 {[%emt 0:01:03]} Ra6 {[%emt 0:00:19]} 57. Kg4 {[%emt 0:00:39]} Kc3 {[%emt 0:00:08]} 58. Rb5 {[%emt 0:00:39]} Rxa4 {[%emt 0:00:33]} 59. Kf5 {[%emt 0:00:13]} Kd3 {[%emt 0:00:04]} 60. Kxf6 {[%emt 0:00:28]} Kd4 {[%emt 0:01:16]} 61. Rxe5 {[%emt 0:00:53]} Ra6+ $2 {[%emt 0:00:35]} (61... Ra1 $11 {and Black stays safe.}) 62. Kf5 {[%emt 0:00:12]} Ra1 {[%emt 0:00:48]} 63. Rd5+ {[%emt 0:00:19]} Kc4 {[%emt 0:00:01]} 64. Ke6 {[%emt 0:00:51]} (64. Rd2 $142 Kc3 65. Rd6) 64... Rh1 {[%emt 0:00:40]} 65. Rd2 {[%emt 0:02:30]} Rh6+ {[%emt 0:00:46]} 66. Kf5 {[%emt 0:00:14]} Rh5+ {[%emt 0:00:27]} 67. Kg4 {[%emt 0:00:21]} Rh1 {[%emt 0:02:06]} 68. e5 {[%emt 0:00:18]} Kc5 {[%emt 0:01:15]} 69. e6 {[%emt 0:00:23]} (69. Kg5 $142 Rg1+ 70. Kf6 Rg3 71. Re2 Rf3+ 72. Kg5 Rg3+ 73. Kf4 Rg8 74. Kf5) 69... Re1 {[%emt 0:00:32]} 70. Kf5 {[%emt 0:00:14]} Kc6 {[%emt 0:01:21]} 71. Kf6 {[%emt 0:00:14]} Rf1+ {[%emt 0:01:20]} 72. Ke7 {[%emt 0:00:22]} Rh1 {[%emt 0:05:41]} 73. Rf2 {[%emt 0:00:34]} Rh7+ {[%emt 0:00:34]} 74. Rf7 {[%emt 0:00:36]} Rh8 {[%emt 0:00:24]} 75. Kf6 {[%emt 0:03:37]} (75. Rf1 $142 Rh7+ 76. Kf8 Rh8+ 77. Kg7 Rh2 78. Re1 Rg2+ 79. Kf7 Rf2+ 80. Kg6) 75... Kd6 {[%emt 0:00:03]} 76. Rd7+ {[%emt 0:01:04]} Kc6 {[%emt 0:00:01]} 77. Kg7 {[%emt 0:01:27]} Rh1 {[%emt 0:00:23]} 78. Rf7 $2 {[%emt 0:03:24]} (78. Rd3 {mates} Re1 79. Kf7 Rf1+ 80. Ke8 Rg1 81. e7 Rb1 82. Rf3 Kd5 83. Kd8) 78... Kd6 {[%emt 0:00:12]} 79. e7 {[%emt 0:00:55]} Kd7 {[%emt 0:00:19]} 80. Kf8 {[%emt 0:01:42]} Rh8+ {[%emt 0:00:06]} 81. Kg7 {[%emt 0:00:25]} Rh1 {[%emt 0:00:19]} 82. Kf6 {[%emt 0:02:28]} Rf1+ $11 {[%emt 0:00:02]} 83. Kg7 {[%emt 0:01:14]} Rh1 {[%emt 0:00:05]} 84. Kg8 {[%emt 0:02:29]} Ke8 {[%emt 0:01:20]} 85. Rg7 {[%emt 0:02:13]} Re1 {[%emt 0:00:08]} 86. Rh7 {[%emt 0:00:31]} Rxe7 {[%emt 0:00:33]} 87. Rxe7+ {[%emt 0:00:40]} Kxe7 {[%emt 0:00:30]} 1/2-1/2

[Event "41st BAN National Women Chess-ch 2022"]
[Site "Dhaka"]
[Date "2022.11.17"]
[Round "1.3"]
[White "Wadifa, Ahmed"]
[Black "Ahmed, Walijah"]
[Result "1/2-1/2"]
[ECO "B01"]
[WhiteElo "1656"]
[BlackElo "1977"]
[Annotator "TA"]
[PlyCount "53"]
[EventDate "2022.11.17"]
[EventCountry "BAN"]
[SourceTitle "playchess.com"]
[Source "ChessBase"]
[SourceQuality "1"]
[TimeControl "40/5400+30:1800+30"]

{[%evp 9,53,34,58,3,51,17,40,10,20,18,39,2,0,8,41,0,11,-31,24,-15,-15,-5,-1,-18,-23,-21,-10,-64,0,0,233,229,216,219,197,0,0,-377,-370,-360,-359,-689,-299,-281,0,-29]} 1. e4 {[%emt 0:00:58]} d5 {[%emt 0:01:18]} 2. exd5 {[%emt 0:00:43]} Qxd5 {[%emt 0:00:09]} 3. Nc3 {[%emt 0:00:05]} Qd6 {[%emt 0:00:07]} 4. Nf3 {[%emt 0:00:07]} Nf6 {[%emt 0:00:40]} 5. d4 {[%emt 0:00:39]} Bg4 {[%emt 0:00:34]} 6. Bc4 {[%emt 0:00:49] B01: Scandinavian Defence.} (6. h3 $14 Bf5 7. Ne5) 6... e6 {[%emt 0:02:14]} (6... Nc6 $11 {might be stronger.}) 7. O-O {[%emt 0:00:33]} (7. d5 $5 {[%cal Rd1e2]}) 7... Be7 {[%emt 0:00:42]} 8. Re1 {[%emt 0:00:20] White is slightly better.} c6 {[%emt 0:01:08] Prevents d5.} 9. Ne4 {[%emt 0:01:56] [#]} Qb4 $146 {[%emt 0:02:32] [#] aiming for ...Bxf3.} ({Predecessor:} 9... Nxe4 10. Rxe4 Bxf3 11. Qxf3 Nd7 12. c3 Nf6 13. Bf4 Qd7 14. Re2 O-O 15. Rae1 Nd5 {1-0 (32) Sergeyeva,M (2308)-Munoz Santana,D (1979) Mallorca 2004}) 10. Bb3 {[%emt 0:03:48]} Bxf3 {[%emt 0:01:25]} 11. gxf3 {[%emt 0:00:04]} Nbd7 {[%emt 0:01:05]} 12. c3 {[%emt 0:00:30]} Qa5 {[%emt 0:00:54]} 13. Kh1 {[%emt 0:01:07]} h6 {[%emt 0:03:35]} (13... Nf8 $15) 14. Nxf6+ {[%emt 0:02:38]} (14. Bf4 {looks sharper.} O-O 15. Rg1 Qh5 16. Qd3) 14... Nxf6 {[%emt 0:00:25]} 15. Bf4 {[%emt 0:01:51] Against Bd6} Qf5 {[%emt 0:01:44]} 16. Be5 {[%emt 0:02:11]} O-O-O {[%emt 0:02:34]} 17. Bc2 {[%emt 0:03:12]} Qh3 {[%emt 0:01:02]} 18. Bd3 {[%emt 0:00:58]} (18. Rg1 $11) 18... Nh5 {[%emt 0:02:17]} (18... Bd6 $15) 19. Bf1 {[%emt 0:00:39] A strong pair of Bishops.} Qh4 {[%emt 0:00:20] [#]} (19... Qf5 $11 {and Black is okay.}) 20. Qa4 $18 {[%emt 0:00:23]} Bd6 {[%emt 0:02:32]} 21. Qxa7 {[%emt 0:00:39]} Bxe5 {[%emt 0:00:54]} 22. dxe5 $2 {[%emt 0:00:05]} (22. Rxe5 $18 {Threatens to win with Rc5.} g6 23. Rc5) 22... Rd2 $1 $36 {[%emt 0:04:07][%csl LRb2,LRf2][%mdl 2048] Black has some pressure.} 23. Qa8+ $2 {[%emt 0:00:20][%mdl 8192]} (23. Ba6 $11 bxa6 24. Qxa6+ Kc7 25. Qa7+ Kc8 26. Qa6+ Kc7 27. Qa7+ Kc8 28. Qa6+) 23... Kc7 $19 {[%emt 0:00:18]} 24. Qa5+ {[%emt 0:00:02]} (24. Qxh8 Rxf2 25. Bg2 Qg5) 24... Kb8 {[%emt 0:00:23]} 25. Rad1 $2 {[%emt 0:01:01]} (25. Qc5 Rxf2 26. Bg2) 25... Qxf2 {[%emt 0:04:51]} (25... Rxf2 $142 {[%csl Gf2][%cal Rh4h2]} 26. Bg2 Ng3+ 27. Kg1 Ne2+ 28. Rxe2 Rxe2) 26. Rxd2 {[%emt 0:00:11]} Qxe1 {[%emt 0:00:04]} ({Black should try} 26... Qxd2 $19 27. Rb1 Qc2) 27. Rd8+ {[%emt 1:18:11] Weighted Error Value: White=0.75/Black=0.56} 1/2-1/2

[Event "41st BAN National Women Chess-ch 2022"]
[Site "Dhaka"]
[Date "2022.11.17"]
[Round "1.4"]
[White "Talukder, Umme Taslima Protiva"]
[Black "Hamid, Rani"]
[Result "0-1"]
[ECO "E01"]
[WhiteElo "1780"]
[BlackElo "1760"]
[Annotator "NA RC COMBH"]
[PlyCount "152"]
[EventDate "2022.11.17"]
[EventCountry "BAN"]
[SourceTitle "playchess.com"]
[Source "ChessBase"]
[SourceQuality "1"]
[TimeControl "40/5400+30:1800+30"]

1. d4 {[%emt 0:00:13]} d5 {[%emt 0:00:20]} 2. c4 {[%emt 0:00:20]} e6 {[%emt 0:00:05]} 3. Nf3 {[%emt 0:00:10]} Nf6 {[%emt 0:00:07]} 4. g3 {[%emt 0:00:31]} Nbd7 {[%emt 0:01:38]} 5. Bg2 {[%emt 0:00:28]} c5 {[%emt 0:00:50]} 6. Nbd2 {[%emt 0:05:02]} Be7 {[%emt 0:03:50]} 7. Qc2 {[%emt 0:01:32]} O-O {[%emt 0:00:33]} 8. O-O {[%emt 0:03:11]} b6 {[%emt 0:01:58]} 9. e4 {[%emt 0:09:39]} dxe4 {[%emt 0:00:50]} 10. Nxe4 {[%emt 0:00:55]} Bb7 {[%emt 0:00:29]} 11. Nc3 {[%emt 0:05:38]} cxd4 {[%emt 0:01:01]} 12. Nxd4 {[%emt 0:00:25]} Bxg2 {[%emt 0:00:12]} 13. Kxg2 {[%emt 0:00:18]} Rc8 {[%emt 0:01:54]} 14. b3 {[%emt 0:02:55]} Ne5 {[%emt 0:02:28]} 15. Be3 {[%emt 0:05:18]} Qc7 {[%emt 0:01:24]} 16. Qe2 {[%emt 0:03:13]} Qb7+ {[%emt 0:01:17]} 17. f3 {[%emt 0:05:42]} Rfd8 {[%emt 0:02:26]} 18. Kg1 {[%emt 0:08:18]} Rd7 {[%emt 0:06:00]} 19. Bf2 {[%emt 0:05:40]} Ng6 {[%emt 0:03:01]} 20. Nc2 {[%emt 0:08:22]} h5 {[%emt 0:03:45]} 21. Rad1 {[%emt 0:01:49]} h4 {[%emt 0:01:46]} 22. Rxd7 {[%emt 0:01:16]} Nxd7 {[%emt 0:00:14]} 23. Qe4 {[%emt 0:01:32]} Qxe4 {[%emt 0:03:29]} 24. fxe4 {[%emt 0:03:12]} Nde5 {[%emt 0:01:14]} 25. Bd4 {[%emt 0:05:07]} Nc6 {[%emt 0:02:08]} 26. Be3 {[%emt 0:03:28]} Bf6 {[%emt 0:01:23]} 27. Ne2 {[%emt 0:01:09]} Rd8 {[%emt 0:00:37]} 28. Kf2 {[%emt 0:00:49]} Nge5 {[%emt 0:01:51]} 29. h3 {[%emt 0:03:21]} hxg3+ {[%emt 0:03:17]} 30. Kxg3 {[%emt 0:01:25]} Ng6 {[%emt 0:00:24]} 31. Nc1 {[%emt 0:03:27]} Kf8 {[%emt 0:07:20]} 32. Kf2 {[%emt 0:02:01]} Ke7 {[%emt 0:00:54]} 33. Ke2 {[%emt 0:01:32]} Rh8 {[%emt 0:00:30]} 34. Rh1 {[%emt 0:00:29]} Rh4 {[%emt 0:00:32]} 35. c5 {[%emt 0:02:07]} b5 {[%emt 0:01:35]} 36. Nd3 {[%emt 0:02:33]} Rxe4 {[%emt 0:00:48]} 37. Kf3 {[%emt 0:00:34]} Rh4 {[%emt 0:00:11]} 38. Bf2 {[%emt 0:00:53]} Rh5 {[%emt 0:03:05]} 39. Ndb4 {[%emt 0:01:52]} Rf5+ {[%emt 0:01:51]} 40. Ke3 {[%emt 0:01:03]} Nxb4 {[%emt 0:02:16]} 41. Nxb4 {[%emt 0:30:17]} Rxc5 {[%emt 0:30:11]} 42. Kd3 {[%emt 0:02:12]} Rc3+ {[%emt 0:02:29]} 43. Kd2 {[%emt 0:00:17]} a5 {[%emt 0:00:56]} 44. Nd3 {[%emt 0:00:37]} Rc8 {[%emt 0:01:58]} 45. Bc5+ {[%emt 0:00:00]} Ke8 {[%emt 0:00:00]} 46. Bb6 {[%emt 0:00:00]} Bg5+ {[%emt 0:00:00]} 47. Be3 {[%emt 0:00:00]} Bxe3+ {[%emt 0:00:00]} 48. Kxe3 {[%emt 0:00:00]} Rc2 {[%emt 0:00:00]} 49. a4 {[%emt 0:00:00]} b4 {[%emt 0:00:00]} 50. Kd4 {[%emt 0:00:00]} Rc3 {[%emt 0:00:00]} 51. Nc5 {[%emt 0:00:00]} Nf4 {[%emt 0:00:00]} 52. Nb7 {[%emt 0:00:00]} f6 {[%emt 0:00:00]} 53. Ke4 {[%emt 0:00:00]} Nxh3 {[%emt 0:00:00]} 54. Rb1 {[%emt 0:00:00]} Ng5+ {[%emt 0:00:00]} 55. Kd4 {[%emt 0:00:00]} Nf3+ {[%emt 0:00:00]} 56. Ke4 {[%emt 0:00:00]} Nd2+ {[%emt 0:00:00]} 57. Kf4 {[%emt 0:00:00]} Nxb1 {[%emt 0:00:00]} 58. Nxa5 {[%emt 0:00:00]} Nd2 {[%emt 0:00:00]} 59. Nb7 {[%emt 0:00:00]} Nxb3 {[%emt 0:00:00]} 60. a5 {[%emt 0:00:00]} Nxa5 {[%emt 0:00:00]} 61. Nxa5 {[%emt 0:00:00]} b3 {[%emt 0:00:00]} 62. Nxb3 {[%emt 0:00:00]} Rxb3 {[%emt 0:00:00]} 63. Ke4 {[%emt 0:00:00]} Kd7 {[%emt 0:00:00]} 64. Kf4 {[%emt 0:00:00]} Kd6 {[%emt 0:00:00]} 65. Ke4 {[%emt 0:00:00]} Rb4+ {[%emt 0:00:00]} 66. Ke3 {[%emt 0:00:00]} g5 {[%emt 0:00:00]} 67. Kf3 {[%emt 0:00:00]} f5 {[%emt 0:00:00]} 68. Kg3 {[%emt 0:00:00]} Rb3+ {[%emt 0:00:00]} 69. Kf2 {[%emt 0:00:00]} g4 {[%emt 0:00:00]} 70. Kg2 {[%emt 0:00:00]} f4 {[%emt 0:00:00]} 71. Kf2 {[%emt 0:00:00]} Rb2+ {[%emt 0:00:00]} 72. Kf1 {[%emt 0:00:00]} g3 {[%emt 0:00:00]} 73. Ke1 {[%emt 0:00:00]} f3 {[%emt 0:00:00]} 74. Kd1 {[%emt 0:00:00]} g2 {[%emt 0:00:00]} 75. Kc1 {[%emt 0:00:00]} Re2 {[%emt 0:00:00]} 76. Kd1 {[%emt 0:00:00]} g1=Q# {[%emt 0:00:00]} 0-1